fUSD/lending_fUSD_20241207
["ID","MTS","AMOUNT","RATE_DAILY","PERIOD"]
[344531325,1733536350562,-2738.63,0.00012599,2]
[344531326,1733536350572,-2307.66,0.00012599,2]
[344531327,1733536350582,-500.0,0.00012599,2]
[344531328,1733536350592,-500.0,0.00012599,2]
[344531329,1733536350602,-659.29,0.00012599,2]
[344531330,1733536350612,-940.36,0.00012599,2]
[344531331,1733536350621,-500.0,0.00012599,2]
[344531332,1733536350631,-500.0,0.00012599,2]
[344531333,1733536350641,-1443.28,0.00012599,2]
[344531334,1733536350652,-509.51,0.00012599,2]
[344531335,1733536350662,-1435.98,0.00012599,2]
[344531336,1733536350672,-1025.19,0.00012599,2]
[344531337,1733536350682,-747.69,0.00012599,2]
[344531338,1733536350693,-500.0,0.00012599,2]
[344531339,1733536350703,-2814.44,0.00012599,2]
[344531340,1733536350713,-7132.51,0.00012599,2]
[344531341,1733536350723,-500.0,0.00012599,2]
[344531342,1733536350732,-500.0,0.00012599,2]
[344531343,1733536350742,-2554.24,0.00012599,2]
[344531344,1733536350752,-862.89,0.00012599,2]
[344531345,1733536350762,-1419.95,0.00012599,2]
[344531346,1733536350772,-824.51,0.00012599,2]
[344531347,1733536350782,-901.61,0.00012599,2]
[344531348,1733536350792,-1511.62,0.00012599,2]
[344531349,1733536350802,-2377.17,0.00012599,2]
[344531350,1733536350811,-8848.27,0.00012599,2]
[344531351,1733536350821,-2208.06,0.00012599,2]
[344531352,1733536350831,-712.8,0.00012599,2]
[344531353,1733536350840,-500.0,0.00012599,2]
[344531354,1733536350849,-4591.69,0.00012599,2]
[344531355,1733536350859,-2710.3,0.00012599,2]
[344531356,1733536350869,-500.0,0.00012599,2]
[344531357,1733536350879,-676.57,0.00012599,2]
[344531358,1733536350888,-500.0,0.00012599,2]
[344531359,1733536350898,-1680.28,0.00012599,2]
[344531360,1733536350908,-500.0,0.00012599,2]
[344531361,1733536350918,-1432.11,0.00012599,2]
[344531362,1733536350928,-500.0,0.00012599,2]
[344531363,1733536350939,-4646.7,0.00012599,2]
[344531364,1733536350949,-15013.49,0.00012599,2]
[344531365,1733536350958,-564.83,0.00012599,2]
[344531366,1733536350969,-4871.52,0.00012599,2]
[344531367,1733536350978,-772.76,0.00012599,2]
[344531368,1733536350988,-815.03,0.00012599,2]
[344531369,1733536350998,-2380.55,0.00012599,2]
[344531370,1733536351008,-1815.68,0.00012599,2]
[344531371,1733536351018,-500.0,0.00012599,2]
[344531372,1733536351030,-500.0,0.00012599,2]
[344531373,1733536351042,-2128.7,0.00012599,2]
[344531374,1733536351052,-1530.78,0.00012599,2]
[344531375,1733536351062,-16965.0,0.00012599,2]
[344531376,1733536351072,-1604.96,0.00012599,2]
[344531377,1733536351082,-500.0,0.00012599,2]
[344531378,1733536351093,-500.0,0.00012599,2]
[344531379,1733536351103,-619.51,0.00012599,2]
[344531380,1733536351116,-500.0,0.00012599,2]
[344531381,1733536351126,-1502.86,0.00012599,2]
[344531382,1733536351136,-7902.9,0.00012599,2]
[344531383,1733536351146,-501.21801307,0.00012599,2]
[344531384,1733536351156,-500.0,0.00012599,2]
[344531385,1733536351165,-502.28,0.00012599,2]
[344531386,1733536351175,-1008.12,0.00012599,2]
[344531387,1733536351185,-500.0,0.00012599,2]
[344531388,1733536351195,-979.79,0.00012599,2]
[344531389,1733536351204,-944.37,0.00012599,2]
[344531390,1733536351213,-653.04,0.00012599,2]
[344531391,1733536351223,-1333.83,0.00012599,2]
[344531392,1733536351232,-500.0,0.00012599,2]
[344531393,1733536351242,-707.74,0.00012599,2]
[344531394,1733536351251,-500.0,0.00012599,2]
[344531395,1733536351260,-500.0,0.00012599,2]
[344531396,1733536351270,-1395.45,0.00012599,2]
[344531397,1733536351279,-1391.91,0.00012599,2]
[344531398,1733536351288,-500.0,0.00012599,2]
[344531399,1733536351299,-947.41,0.00012599,2]
[344531400,1733536351308,-1361.4,0.00012599,2]
[344531401,1733536351318,-500.0,0.00012599,2]
[344531402,1733536351328,-2140.86,0.00012599,2]
[344531403,1733536351338,-1620.87,0.00012599,2]
[344531404,1733536351347,-500.0,0.00012599,2]
[344531405,1733536351357,-500.0,0.000126,2]
[344531406,1733536351367,-1973.59,0.000126,2]
[344531407,1733536351376,-919.96,0.000126,2]
[344531408,1733536351386,-2028.99,0.000126,2]
[344531409,1733536351396,-500.0,0.000126,2]
[344531410,1733536351407,-1957.15,0.000126,2]
[344531411,1733536351416,-1074.67,0.000126,2]
[344531412,1733536351426,-500.0,0.000126,2]
[344531413,1733536351436,-1596.59,0.000126,2]
[344531414,1733536351445,-500.0,0.000126,2]
[344531415,1733536351454,-500.0,0.000126,2]
[344531416,1733536351464,-534.65,0.000126,2]
[344531417,1733536351474,-500.0,0.000126,2]
[344531418,1733536351484,-1462.96,0.000126,2]
[344531419,1733536351493,-406.70332042,0.000126,2]
[344531420,1733536351503,-500.0,0.000126,2]
[344531421,1733536351512,-500.0,0.000126,2]
[344531422,1733536351521,-500.0,0.000126,2]
[344531423,1733536351531,-854.27,0.000126,2]
[344531424,1733536351540,-500.35711293,0.000126,2]
[344531425,1733536351550,-952.41,0.000126,2]
[344531426,1733536351559,-500.0,0.000126,2]
[344531427,1733536351568,-500.0,0.000126,2]
[344531428,1733536351579,-1923.16,0.000126,2]
[344531429,1733536351588,-1220.83,0.000126,2]
[344531430,1733536351598,-500.0,0.000126,2]
[344531431,1733536351607,-500.0,0.000126,2]
[344531432,1733536351617,-1173.25,0.000126,2]
[344531433,1733536351626,-500.0,0.000126,2]
[344531434,1733536351635,-500.0,0.000126,2]
[344531435,1733536351644,-1427.49,0.000126,2]
[344531436,1733536351655,-500.0,0.000126,2]
[344531437,1733536351664,-1132.29,0.000126,2]
[344531438,1733536351674,-500.0,0.000126,2]
[344531439,1733536351683,-1988.24,0.000126,2]
[344531440,1733536351693,-2268.55,0.000126,2]
[344531441,1733536351703,-500.0,0.000126,2]
[344531442,1733536351712,-1649.72,0.000126,2]
[344531443,1733536351721,-500.0,0.000126,2]
[344531444,1733536351730,-838.85,0.000126,2]
[344531445,1733536351739,-1204.84,0.000126,2]
[344531446,1733536351749,-500.0,0.000126,2]
[344531447,1733536351758,-1419.07,0.000126,2]
[344531448,1733536351767,-672.22,0.000126,2]
[344531449,1733536351776,-500.0,0.000126,2]
[344531450,1733536351786,-500.0,0.000126,2]
[344531451,1733536351796,-500.0,0.000126,2]
[344531452,1733536351805,-1429.7,0.000126,2]
[344531453,1733536351815,-500.0,0.000126,2]
[344531454,1733536351823,-1164.95,0.000126,2]
[344531455,1733536351832,-1139.75,0.000126,2]
[344531456,1733536351841,-500.0,0.000126,2]
[344531457,1733536351851,-500.0,0.000126,2]
[344531458,1733536351862,-500.0,0.000126,2]
[344531459,1733536351872,-500.0,0.000126,2]
[344531460,1733536351882,-874.05,0.000126,2]
[344531461,1733536351892,-788.76,0.000126,2]
[344531462,1733536351904,-499.79246493,0.000126,2]
[344531463,1733536351914,-500.0,0.000126,2]
[344531464,1733536351923,-500.0,0.000126,2]
[344531465,1733536351933,-2270.59,0.000126,2]
[344531466,1733536351942,-821.23,0.000126,2]
[344531467,1733536351951,-500.0,0.000126,2]
[344531468,1733536351960,-1579.83,0.000126,2]
[344531469,1733536351970,-500.0,0.000126,2]
[344531470,1733536351979,-199.70924125,0.000126,2]
[344531471,1733536351988,-500.0,0.000126,2]
[344531472,1733536351998,-693.82,0.000126,2]
[344531473,1733536352007,-1496.96,0.000126,2]
[344531474,1733536352018,-500.0,0.000126,2]
[344531475,1733536352032,-1337.46,0.000126,2]
[344531476,1733536352041,-1067.55,0.000126,2]
[344531477,1733536352050,-909.31,0.000126,2]
[344531478,1733536352200,-500.0,0.000126,2]
[344531479,1733536352210,-1306.23,0.000126,2]
[344531480,1733536352220,-4172.15,0.000126,2]
[344531481,1733536352230,-500.0,0.000126,2]
[344531482,1733536352240,-3682.15,0.000126,2]
[344531483,1733536352249,-2451.74,0.000126,2]
[344531484,1733536352259,-1388.88,0.000126,2]
[344531485,1733536352269,-500.0,0.000126,2]
[344531486,1733536352279,-500.0,0.000126,4]
[344531487,1733536352289,-873.88,0.000126,2]
[344531488,1733536352300,-500.0,0.000126,2]
[344531489,1733536352310,-12615.43,0.000126,2]
[344531490,1733536352319,-531.19,0.000126,2]
[344531491,1733536352329,-1534.76,0.000126,2]
[344531492,1733536352339,-1375.96,0.000126,2]
[344531493,1733536352348,-3418.5,0.000126,2]
[344531494,1733536352358,-3762.16,0.000126,2]
[344531495,1733536352368,-1672.75,0.000126,2]
[344531496,1733536352378,-1386.08,0.000126,2]
[344531497,1733536352388,-5487.01,0.000126,2]
[344531498,1733536352397,-1319.83,0.000126,2]
[344531499,1733536352408,-1615.88,0.000126,2]
[344531500,1733536352418,-500.0,0.000126,2]
[344531501,1733536352428,-3508.25,0.000126,2]
[344531502,1733536352437,-1212.79,0.000126,2]
[344531503,1733536352447,-500.0,0.000126,2]
[344531504,1733536352457,-3134.44,0.000126,2]
[344531505,1733536352466,-500.0,0.000126,2]
[344531506,1733536352476,-1417.37,0.000126,2]
[344531507,1733536352486,-2607.01,0.000126,2]
[344531508,1733536352495,-500.0,0.000126,2]
[344531509,1733536352505,-2314.85,0.000126,2]
[344531510,1733536352515,-500.0,0.000126,2]
[344531511,1733536352524,-1066.22,0.000126,2]
[344531512,1733536352533,-1855.42,0.000126,2]
[344531513,1733536352543,-3863.17,0.000126,2]
[344531514,1733536352552,-2316.43,0.000126,2]
[344531515,1733536352561,-1758.84,0.000126,2]
[344531516,1733536352571,-500.0,0.000126,2]
[344531517,1733536352580,-500.0,0.000126,2]
[344531518,1733536352590,-513.82,0.000126,2]
[344531519,1733536352601,-500.0,0.000126,2]
[344531520,1733536352610,-904.08,0.000126,2]
[344531521,1733536352620,-500.0,0.000126,2]
[344531522,1733536352630,-2971.06,0.000126,2]
[344531523,1733536352639,-607.67,0.000126,2]
[344531524,1733536352650,-908.45,0.000126,2]
[344531525,1733536352660,-500.0,0.000126,2]
[344531526,1733536352672,-2730.04,0.000126,2]
[344531527,1733536352682,-601.7,0.000126,2]
[344531528,1733536352691,-1655.05,0.000126,2]
[344531529,1733536352701,-1410.09,0.000126,2]
[344531530,1733536352711,-1390.17,0.000126,2]
[344531531,1733536352720,-1232.19,0.000126,2]
[344531532,1733536352730,-668.26,0.000126,2]
[344531533,1733536352739,-1273.21,0.000126,2]
[344531534,1733536352749,-500.0,0.000126,2]
[344531535,1733536352759,-500.0,0.000126,2]
[344531536,1733536352768,-3636.84,0.000126,2]
[344531537,1733536352778,-2436.97,0.000126,2]
[344531538,1733536352788,-500.0,0.000126,2]
[344531539,1733536352797,-500.0,0.00012601,2]
[344531540,1733536352807,-378.04131432,0.00012601,2]
[344531541,1733536352817,-500.0,0.00012601,2]
[344531542,1733536352826,-1010.16,0.00012601,2]
[344531543,1733536352835,-495.09280183,0.00012601,2]
[344531544,1733536352845,-500.0,0.00012601,2]
[344531545,1733536352856,-500.0,0.00012601,2]
[344531546,1733536352867,-605.55,0.00012601,2]
[344531547,1733536352876,-500.0,0.00012601,2]
[344531548,1733536352885,-500.0,0.00012601,2]
[344531549,1733536352894,-500.0,0.00012601,2]
[344531550,1733536352905,-500.0,0.00012601,2]
[344531551,1733536352914,-500.0,0.00012601,2]
[344531552,1733536352923,-500.0,0.00012601,2]
[344531553,1733536352933,-500.0,0.00012601,2]
[344531554,1733536352943,-500.0,0.00012601,2]
[344531555,1733536352952,-1189.5,0.00012601,2]
[344531556,1733536352963,-500.0,0.00012601,2]
[344531557,1733536352973,-691.44,0.00012601,2]
[344531558,1733536352982,-593.21,0.00012601,2]
[344531559,1733536352992,-500.0,0.00012601,2]
[344531560,1733536353002,-500.0,0.00012601,2]
[344531561,1733536353012,-575.21,0.00012601,2]
[344531562,1733536353021,-760.02,0.00012601,2]
[344531563,1733536353034,-997.85,0.00012601,2]
[344531564,1733536353044,-500.0,0.00012601,2]
[344531565,1733536353053,-569.15,0.00012601,2]
[344531566,1733536353063,-1576.42,0.00012601,2]
[344531567,1733536353074,-968.36,0.00012601,2]
[344531568,1733536353084,-649.06,0.00012601,2]
[344531569,1733536353094,-1164.89,0.00012601,2]
[344531570,1733536353104,-500.0,0.00012601,2]
[344531571,1733536353114,-500.0,0.00012601,2]
[344531572,1733536353124,-500.0,0.00012601,2]
[344531573,1733536353134,-323.69275173,0.00012601,2]
[344531574,1733536353144,-1156.26,0.00012601,2]
[344531575,1733536353155,-500.0,0.00012601,2]
[344531576,1733536353165,-602.11,0.00012601,2]
[344531577,1733536353174,-500.0,0.00012601,2]
[344531578,1733536353184,-500.0,0.00012601,2]
[344531579,1733536353193,-500.0,0.00012601,2]
[344531580,1733536353203,-1076.61,0.00012601,2]
[344531581,1733536353214,-973.36,0.00012601,2]
[344531582,1733536353224,-500.0,0.00012601,2]
[344531583,1733536353234,-500.0,0.00012601,2]
[344531584,1733536353243,-700.55,0.00012601,2]
[344531585,1733536353253,-667.19,0.00012601,2]
[344531586,1733536353263,-500.0,0.00012601,2]
[344531587,1733536353272,-920.45,0.00012601,2]
[344531588,1733536353282,-500.0,0.00012601,2]
[344531589,1733536353291,-1231.3,0.00012601,2]
[344531590,1733536353301,-901.24,0.00012601,2]
[344531591,1733536353310,-2088.05,0.00012601,2]
[344531592,1733536353320,-600.34,0.00012601,2]
[344531593,1733536353329,-1450.85,0.00012601,2]
[344531594,1733536353339,-993.78,0.00012601,2]
[344531595,1733536353348,-573.52,0.00012601,2]
[344531596,1733536353358,-1382.36,0.00012601,2]
[344531597,1733536353368,-516.23,0.00012601,2]
[344531598,1733536353378,-1010.6,0.00012601,2]
[344531599,1733536353387,-496.31556402,0.00012601,2]
[344531600,1733536353397,-500.0,0.00012601,2]
[344531601,1733536353409,-1088.16,0.00012601,2]
[344531602,1733536353418,-583.14,0.00012601,2]
[344531603,1733536353428,-500.0,0.00012601,2]
[344531604,1733536353437,-500.0,0.00012601,2]
[344531605,1733536353447,-500.0,0.00012601,2]
[344531606,1733536353456,-1163.95,0.00012601,2]
[344531607,1733536353466,-500.0,0.00012601,2]
[344531608,1733536353475,-1200.64,0.00012601,2]
[344531609,1733536353484,-500.0,0.00012601,2]
[344531610,1733536353494,-758.44,0.00012601,2]
[344531611,1733536353503,-2130.51,0.00012601,2]
[344531612,1733536353513,-639.62,0.00012601,2]
[344531613,1733536353522,-500.0,0.00012601,2]
[344531614,1733536353532,-500.0,0.00012601,2]
[344531615,1733536353541,-541.83,0.00012601,2]
[344531616,1733536353551,-500.0,0.00012601,2]
[344531617,1733536353560,-500.0,0.00012601,2]
[344531618,1733536353570,-735.14,0.00012601,2]
[344531619,1733536353579,-1954.45,0.00012601,2]
[344531620,1733536353589,-782.84,0.00012601,2]
[344531621,1733536353599,-500.0,0.00012601,2]
[344531622,1733536353609,-503.74,0.00012601,2]
[344531623,1733536353619,-2507.35,0.00012601,2]
[344531624,1733536353629,-500.0,0.00012601,2]
[344531625,1733536353639,-500.0,0.00012601,2]
[344531626,1733536353650,-500.0,0.00012601,2]
[344531627,1733536353660,-500.0,0.00012601,2]
[344531628,1733536353670,-1670.54,0.00012601,2]
[344531629,1733536353680,-3627.1,0.00012601,2]
[344531630,1733536353690,-637.28,0.00012601,2]
[344531631,1733536353699,-2426.48,0.00012601,2]
[344531632,1733536353710,-500.0,0.00012601,2]
[344531633,1733536353720,-835.68,0.00012601,2]
[344531634,1733536353731,-500.0,0.00012601,2]
[344531635,1733536353741,-628.51,0.00012601,2]
[344531636,1733536353751,-553.52,0.00012601,2]
[344531637,1733536353761,-500.0,0.00012601,2]
[344531638,1733536353771,-1240.03,0.00012601,2]
[344531639,1733536353780,-1044.07,0.00012601,2]
[344531640,1733536353790,-1404.78,0.00012601,2]
[344531641,1733536353801,-500.0,0.00012601,2]
[344531642,1733536353814,-1794.48,0.00012601,2]
[344531643,1733536353824,-1613.0,0.00012601,2]
[344531644,1733536353834,-500.0,0.00012601,2]
[344531645,1733536353843,-436.38463826,0.00012601,2]
[344531646,1733536353853,-762.01,0.00012601,2]
[344531647,1733536353864,-1379.89,0.00012601,2]
[344531648,1733536353874,-1019.21,0.00012601,2]
[344531649,1733536353884,-1651.01,0.00012601,2]
[344531650,1733536353893,-744.38,0.00012601,2]
[344531651,1733536353905,-1915.65,0.00012601,2]
[344531652,1733536353915,-834.64,0.00012601,2]
[344531653,1733536353925,-966.56,0.00012601,2]
[344531654,1733536353935,-500.0,0.00012601,2]
[344531655,1733536353945,-493.39860776,0.00012601,2]
[344531656,1733536353955,-500.0,0.00012601,2]
[344531657,1733536353965,-1214.3,0.00012601,2]
[344531658,1733536353975,-705.76,0.00012601,2]
[344531659,1733536353985,-533.65,0.00012601,2]
[344531660,1733536353995,-373.99873299,0.00012601,2]
[344531661,1733536354005,-500.0,0.00012601,2]
[344531662,1733536354015,-500.0,0.00012601,2]
[344531663,1733536354027,-1406.31,0.00012601,2]
[344531664,1733536354039,-500.0,0.00012601,2]
[344531665,1733536354048,-594.92,0.00012601,2]
[344531666,1733536354058,-500.0,0.00012601,2]
[344531667,1733536354067,-2050.62,0.00012601,2]
[344531668,1733536354078,-524.61,0.00012601,2]
[344531669,1733536354088,-708.93,0.00012601,2]
[344531670,1733536354099,-1573.14,0.00012601,2]
[344531671,1733536354109,-644.61,0.00012601,2]
[344531672,1733536354119,-828.88,0.00012601,2]
[344531673,1733536354128,-500.0,0.00012601,2]
[344531674,1733536354138,-591.34,0.00012601,2]
[344531675,1733536354148,-962.21,0.00012601,2]
[344531676,1733536354159,-500.0,0.00012601,2]
[344531677,1733536354170,-500.0,0.00012601,2]
[344531678,1733536354180,-500.0,0.00012601,2]
[344531679,1733536354190,-727.36,0.00012601,2]
[344531680,1733536354200,-500.0,0.00012601,2]
[344531681,1733536354210,-1695.75,0.00012601,2]
[344531682,1733536354219,-500.0,0.00012601,2]
[344531683,1733536354229,-500.0,0.00012601,2]
[344531684,1733536354239,-500.0,0.00012601,2]
[344531685,1733536354249,-500.0,0.00012601,2]
[344531686,1733536354258,-1094.72,0.00012601,2]
[344531687,1733536354267,-500.0,0.00012601,2]
[344531688,1733536354277,-1072.02,0.00012601,2]
[344531689,1733536354286,-9961.93,0.00012601,2]
[344531690,1733536354296,-2541.91,0.00012601,2]
[344531691,1733536354306,-1111.7,0.00012601,2]
[344531692,1733536354653,-883.19,0.00012601,2]
[344531693,1733536354663,-654.68,0.00012601,2]
[344531694,1733536354673,-652.62,0.00012601,2]
[344531695,1733536354683,-897.52,0.00012601,2]
[344531696,1733536354692,-1954.67,0.00012601,2]
[344531697,1733536354702,-1297.46,0.00012601,2]
[344531698,1733536354712,-2400.98,0.00012601,2]
[344531699,1733536354722,-500.0,0.00012601,2]
[344531700,1733536354732,-1492.09,0.00012601,2]
[344531701,1733536354742,-500.0,0.00012601,2]
[344531702,1733536354751,-1153.18,0.00012601,2]
[344531703,1733536354761,-3028.83,0.00012601,2]
[344531704,1733536354771,-500.0,0.00012601,2]
[344531705,1733536354780,-500.0,0.00012601,2]
[344531706,1733536354790,-620.79,0.00012601,2]
[344531707,1733536354800,-566.85,0.00012601,2]
[344531708,1733536354810,-10531.06,0.00012601,2]
[344531709,1733536354821,-1407.02,0.00012601,2]
[344531710,1733536354831,-500.0,0.00012601,2]
[344531711,1733536354841,-1426.66,0.00012601,2]
[344531712,1733536354851,-2365.74,0.00012601,2]
[344531713,1733536354862,-998.54,0.00012601,2]
[344531714,1733536354873,-2446.0,0.00012601,2]
[344531715,1733536354884,-500.0,0.00012601,2]
[344531716,1733536354894,-1369.81,0.00012601,2]
[344531717,1733536354905,-934.38,0.00012601,2]
[344531718,1733536354914,-500.0,0.00012601,2]
[344531719,1733536354924,-447.16,0.00012601,2]
[344531720,1733536354935,-500.0,0.00012601,2]
[344531721,1733536354945,-738.72,0.00012601,2]
[344531722,1733536354955,-500.0,0.00012601,2]
[344531723,1733536354964,-500.0,0.00012601,2]
[344531724,1733536354974,-1236.15,0.00012601,2]
[344531725,1733536354983,-918.81,0.00012601,2]
[344531726,1733536354993,-1259.46,0.00012601,2]
[344531727,1733536355003,-961.29,0.00012601,2]
[344531728,1733536355014,-1580.55,0.00012601,2]
[344531729,1733536355024,-1658.82,0.00012601,2]
[344531730,1733536355039,-500.0,0.00012601,2]
[344531731,1733536355049,-2076.32,0.00012601,2]
[344531732,1733536355059,-5834.62,0.00012601,2]
[344531733,1733536355070,-500.0,0.00012601,2]
[344531734,1733536355080,-726.18,0.00012601,2]
[344531735,1733536355090,-636.56,0.00012601,2]
[344531736,1733536355099,-500.0,0.00012601,2]
[344531737,1733536355109,-500.0,0.00012601,2]
[344531738,1733536355118,-1262.13,0.00012601,2]
[344531739,1733536355128,-985.05,0.00012601,2]
[344531740,1733536355138,-653.92,0.00012601,2]
[344531741,1733536355147,-908.51,0.00012601,2]
[344531742,1733536355158,-869.32,0.00012601,2]
[344531743,1733536355168,-500.0,0.00012601,2]
[344531744,1733536355178,-500.0,0.00012601,2]
[344531745,1733536355187,-500.0,0.00012601,2]
[344531746,1733536355197,-500.0,0.00012602,2]
[344531747,1733536355206,-1449.0,0.00012602,2]
[344531748,1733536355216,-994.75181101,0.00012602,2]
[344531749,1733536355226,-3618.33,0.00012602,2]
[344531750,1733536355235,-500.0,0.00012602,2]
[344531751,1733536355244,-990.12,0.00012602,2]
[344531752,1733536355253,-500.0,0.00012602,2]
[344531753,1733536355263,-1010.91,0.00012602,2]
[344531754,1733536355272,-1180.33,0.00012602,2]
[344531755,1733536355281,-637.63,0.00012602,2]
[344531756,1733536355290,-903.24,0.00012602,2]
[344531757,1733536355300,-1081.3,0.00012602,2]
[344531758,1733536355309,-1231.81,0.00012602,2]
[344531759,1733536355319,-1080.58,0.00012602,2]
[344531760,1733536355328,-500.0,0.00012602,2]
[344531761,1733536355337,-2311.91,0.00012602,2]
[344531762,1733536355347,-500.0,0.00012602,2]
[344531763,1733536355358,-1160.55,0.00012602,2]
[344531764,1733536355368,-553.68,0.00012602,2]
[344531765,1733536355378,-692.9,0.00012602,2]
[344531766,1733536355388,-1316.86,0.00012602,2]
[344531767,1733536355397,-945.34,0.00012602,2]
[344531768,1733536355411,-500.0,0.00012602,2]
[344531769,1733536355420,-865.87,0.00012602,2]
[344531770,1733536355430,-500.0,0.00012602,2]
[344531771,1733536355439,-2197.67,0.00012602,2]
[344531772,1733536355448,-1705.69,0.00012602,2]
[344531773,1733536355459,-1267.06,0.00012602,2]
[344531774,1733536355469,-1414.49,0.00012602,2]
[344531775,1733536355479,-1616.63,0.00012602,2]
[344531776,1733536355489,-2472.9,0.00012602,2]
[344531777,1733536355499,-1973.18,0.00012602,2]
[344531778,1733536355510,-1808.78,0.00012602,2]
[344531779,1733536355519,-765.64,0.00012602,2]
[344531780,1733536355528,-1450.65,0.00012602,2]
[344531781,1733536355538,-1036.41,0.00012602,2]
[344531782,1733536355548,-1048.28,0.00012602,2]
[344531783,1733536355559,-1201.84,0.00012602,2]
[344531784,1733536355568,-593.82,0.00012602,2]
[344531785,1733536355578,-500.0,0.00012602,2]
[344531786,1733536355588,-875.63,0.00012602,2]
[344531787,1733536355597,-863.77,0.00012602,2]
[344531788,1733536355607,-935.91,0.00012602,2]
[344531789,1733536355618,-500.0,0.00012602,2]
[344531790,1733536355628,-1027.36,0.00012602,2]
[344531791,1733536355638,-804.35,0.00012602,2]
[344531792,1733536355648,-1311.72,0.00012602,2]
[344531793,1733536355660,-819.23,0.00012602,2]
[344531794,1733536355670,-1315.73,0.00012602,2]
[344531795,1733536355681,-960.54,0.00012602,2]
[344531796,1733536355692,-1551.33,0.00012602,2]
[344531797,1733536355702,-74462.85689848,0.00012646,2]
[344531798,1733536355713,-5012.56,0.00012666,2]
[344531799,1733536355723,-171.15,0.00012696,2]
[344531800,1733536355733,-500.0,0.000127,4]
[344531801,1733536355743,-838.85,0.00012737,2]
[344531802,1733536355752,-500.0,0.000128,4]
[344531803,1733536355762,-901.71,0.00012831,2]
[344531804,1733536355772,-500.0,0.00012872,2]
[344531805,1733536355782,-500.0,0.00012872,2]
[344531806,1733536355792,-500.0,0.00012872,2]
[344531807,1733536355802,-584.42,0.00012872,2]
[344531808,1733536355812,-500.0,0.00012873,2]
[344531809,1733536355823,-1237.14,0.00012873,2]
[344531810,1733536355833,-500.0,0.00012873,2]
[344531811,1733536355842,-500.0,0.00012873,2]
[344531812,1733536355851,-578.46,0.00012873,2]
[344531813,1733536355863,-500.0,0.00012873,2]
[344531814,1733536355874,-1472.55,0.00012873,2]
[344531815,1733536355883,-500.0,0.00012873,2]
[344531816,1733536355893,-500.0,0.00012873,2]
[344531817,1733536355904,-500.0,0.00012873,2]
[344531818,1733536355914,-500.0,0.00012873,2]
[344531819,1733536355924,-1921.93,0.00012873,2]
[344531820,1733536355934,-6459.48,0.00012873,2]
[344531821,1733536355944,-665.33,0.00012873,2]
[344531822,1733536355953,-2738.63,0.00012873,2]
[344531823,1733536355963,-2307.66,0.00012873,2]
[344531824,1733536355974,-500.0,0.00012873,2]